bitfinex/quotes_SOLUSD_20251212
["timestamp","ask_amount","ask_price","bid_price","bid_amount"]
[1765563571603,0.7,132.38,132.33,7.55681582]
[1765563571915,0.7,132.38,132.33,8.24681582]
[1765563572218,13.22419675,132.38,132.33,27.13897935]
[1765563572404,25.66400793,132.38,132.33,8.24681582]
[1765563572599,20.69385037,132.38,132.33,8.24681582]
[1765563573810,26.39566197,132.37,132.31,0.69]
[1765563574114,26.39566197,132.37,132.28,7.5597218]
[1765563574115,19.99696184,132.33,132.28,7.5597218]
[1765563574620,8.25715066,132.33,132.28,7.5597218]
[1765563574914,8.25715066,132.33,132.29,0.69]
[1765563574915,13.23846373,132.33,132.29,0.69]
[1765563575089,13.23846373,132.33,132.28,8.2497218]
[1765563575290,13.23899441,132.32,132.28,7.5597218]
[1765563575490,13.23899441,132.32,132.27,7.5600832]
[1765563575491,4.98131307,132.31,132.27,7.5600832]
[1765563575725,4.98131307,132.31,132.28,7.55956376]
[1765563575896,4.98131307,132.3,132.26,9.17]
[1765563576216,4.98131307,132.29,132.26,16.73050333]
[1765563576400,25.71131407,132.28,132.26,0.2]
[1765563576718,17.43131407,132.27,132.26,0.2]
[1765563576914,26.94125899,132.27,132.26,0.2]
[1765563577301,4.99150289,132.27,132.26,0.2]
[1765563577623,13.25179622,132.27,132.26,0.2]
[1765563577926,12.55179622,132.27,132.26,0.2]
[1765563578111,4.99150289,132.27,132.26,8.45086496]
[1765563578305,4.99988618,132.29,132.26,8.45086496]
[1765563578501,8.25809966,132.31,132.26,8.45086496]
[1765563578703,4.9997746,132.3,132.26,8.45086496]
[1765563579023,4.9997746,132.29,132.27,0.97432314]
[1765563579214,22.08169457,132.32,132.28,7.5597218]
[1765563579417,5.00775799,132.31,132.28,7.5597218]
[1765563579606,5.00775799,132.3,132.28,7.5597218]
[1765563579806,13.80124222,132.33,132.29,0.69]
[1765563580006,5.00689975,132.32,132.29,0.69]
[1765563580208,5.00689975,132.31,132.28,7.5597218]
[1765563580500,5.00689975,132.3,132.28,8.2497218]
[1765563580708,5.00689975,132.29,132.27,8.28]
[1765563580919,5.00689975,132.28,132.27,8.28]
[1765563581218,5.00689975,132.28,132.27,28.56442765]
[1765563581526,5.00689975,132.28,132.27,29.25442765]
[1765563583700,5.00689975,132.28,132.27,16.53029333]
[1765563583900,5.00689975,132.28,132.27,8.28]
[1765563583901,11.25106899,132.28,132.27,8.28]
[1765563584109,5.00689975,132.28,132.27,29.25442765]
[1765563584516,5.00689975,132.28,132.27,8.97]
[1765563584710,5.00689975,132.28,132.27,8.28]
[1765563585113,5.00689975,132.28,132.27,15.84029333]
[1765563585317,5.00689975,132.28,132.27,8.28]
[1765563586239,11.25106899,132.28,132.27,8.28]
[1765563587035,13.26683041,132.28,132.26,0.2]
[1765563587327,11.3242631,132.27,132.26,0.2]
[1765563587532,19.58455643,132.27,132.26,0.2]
[1765563587758,12.0242631,132.27,132.26,0.2]
[1765563588224,11.3242631,132.27,132.26,0.2]
[1765563588443,5.00689975,132.27,132.26,0.2]
[1765563589513,32.02436761,132.27,132.26,0.2]
[1765563589726,40.83431253,132.27,132.25,0.2]
[1765563589926,26.95665585,132.26,132.25,0.2]
[1765563590111,14.51684467,132.26,132.25,0.2]
[1765563590603,5.70689975,132.26,132.25,0.2]
[1765563590998,5.00689975,132.26,132.25,0.2]
[1765563591227,5.00689975,132.26,132.25,0.88]
[1765563591544,5.00689975,132.26,132.25,0.2]
[1765563592933,12.56776471,132.26,132.25,0.2]
[1765563593129,47.53461201,132.26,132.25,0.2]
[1765563593324,16.37309724,132.22,132.2,0.2]
[1765563593526,109.53665585,132.21,132.2,0.2]
[1765563593730,110.20665585,132.21,132.2,0.2]
[1765563594141,116.52660434,132.21,132.2,0.2]
[1765563595280,117.4182075,132.21,132.2,0.2]
[1765563595545,33.05177112,132.19,132.15,0.2]
[1765563595753,38.73817567,132.19,132.15,0.2]
[1765563595970,5.00689975,132.19,132.15,0.2]
[1765563596252,13.81684467,132.19,132.15,7.76665957]
[1765563596546,34.50102939,132.19,132.15,0.2]
[1765563596748,13.81684467,132.19,132.15,0.88]
[1765563597323,22.05171341,132.19,132.15,0.2]
[1765563597552,34.50102939,132.19,132.15,0.2]
[1765563597760,42.78102939,132.19,132.15,0.2]
[1765563598352,30.33171341,132.19,132.15,7.76707888]
[1765563599133,30.33171341,132.19,132.15,0.2]
[1765563599745,42.78102939,132.19,132.15,0.2]
[1765563599941,117.78102939,132.19,132.15,0.2]
[1765563600248,105.33171341,132.19,132.15,0.2]
[1765563600440,5.00689975,132.19,132.16,7.56623062]
[1765563600631,28.96418472,132.19,132.15,0.2]
[1765563600827,42.81737295,132.19,132.15,0.2]
[1765563602554,13.32324331,132.19,132.15,0.2]
[1765563602937,42.81737295,132.19,132.15,0.2]
[1765563603138,83.80994492,132.18,132.15,0.2]
[1765563603336,109.3063521,132.16,132.15,0.2]
[1765563603542,121.91618136,132.16,132.15,0.2]
[1765563603742,122.58618136,132.16,132.15,0.2]
[1765563604343,122.8705045,132.16,132.15,1e-08]
[1765563604544,133.13168915,132.16,132.15,1e-08]
[1765563605469,126.81517984,132.16,132.15,1e-08]
[1765563606754,117.54293805,132.16,132.15,1e-08]
[1765563606957,122.56371202,132.16,132.15,1e-08]
[1765563607354,126.79302259,132.16,132.15,1e-08]
[1765563607865,158.80994492,132.13,132.11,0.1]
[1765563608063,8.80994492,132.07,132.04,0.1]
[1765563608368,8.3,132.06,132.04,0.1]
[1765563608753,8.3,132.06,132.04,0.78]
[1765563609881,8.3,132.06,132.04,0.1]
[1765563610093,8.3,132.06,132.04,0.78]
[1765563610372,8.3,132.07,132.04,8.35332098]
[1765563610547,20.61721454,132.1,132.04,8.35332098]
[1765563610548,8.3,132.08,132.04,20.80263696]
[1765563610749,8.3,132.08,132.05,0.68]
[1765563611594,8.3,132.08,132.05,13.12931598]
[1765563611891,34.9763521,132.07,132.04,0.1]
[1765563612180,8.3,132.06,132.04,0.78]
[1765563612389,21.41931598,132.06,132.04,0.1]
[1765563612549,21.9292609,132.05,132.04,0.1]
[1765563613076,20.74931598,132.06,132.04,0.1]
[1765563613275,8.3,132.06,132.04,0.78]
[1765563613581,8.3,132.05,132.04,0.78]
[1765563613881,8.3,132.05,132.04,0.1]
[1765563614070,15.87288905,132.05,132.04,0.1]
[1765563614577,28.32220503,132.05,132.04,0.1]
[1765563614775,37.80214995,132.05,132.04,0.1]
[1765563615766,8.80994492,132.01,131.94,8.25919174]
[1765563615964,7.68526258,131.97,131.94,0.68]
[1765563616264,8.3,131.99,131.95,8.36526258]
[1765563616665,8.3,131.99,131.96,0.68]
[1765563617957,15.87643345,131.99,131.96,0.68]
[1765563618159,16.4952075,131.98,131.93,0.68]
[1765563618758,16.4952075,131.98,131.93,8.2597208]
[1765563618980,16.4952075,131.98,131.93,0.68]
[1765563619183,17.1552075,131.98,131.94,0.68]
[1765563619484,7.68526258,131.95,131.9,0.68]
[1765563619779,24.7952075,131.94,131.9,0.68]
[1765563619969,7.57977715,131.93,131.9,0.68]
[1765563620171,8.3,131.94,131.9,0.68]
[1765563620489,8.3,131.94,131.9,8.26149866]
[1765563620974,7.57708883,131.98,131.92,7.68526258]
[1765563621279,8.3,131.97,131.93,0.68]
[1765563621498,8.80994492,131.96,131.91,0.68]
[1765563621790,8.3,131.95,131.84,8.28]
[1765563621959,8.3,131.95,131.88,0.28432314]
[1765563621960,7.57920266,131.94,131.88,0.28432314]
[1765563622308,34.2124719,131.94,131.88,7.58250345]
[1765563622472,7.68526258,131.92,131.86,0.68]
[1765563622801,8.3,131.91,131.86,8.26364823]
[1765563623161,8.3,131.91,131.87,8.26316173]
[1765563623389,8.3,131.91,131.88,7.5826454]
[1765563623993,8.3,131.91,131.89,0.68]
[1765563624172,8.3,131.91,131.88,8.26259385]
[1765563624572,15.88102294,131.91,131.88,0.68]
[1765563625320,6.27512363,132.0,131.93,13.0470912]
[1765563625457,8.3,131.99,131.96,7.68526258]
[1765563625663,8.3,131.99,131.94,8.36526258]
[1765563625967,9.02,131.99,131.94,8.36526258]
[1765563626193,8.3,131.99,131.96,7.68526258]
[1765563626488,15.87633433,131.99,131.96,7.68526258]
[1765563626659,7.57633433,131.99,131.96,7.68526258]
[1765563626864,8.3,131.98,131.96,8.36526258]
[1765563627770,7.57527846,132.01,131.97,0.68]
[1765563628078,8.3,132.0,131.96,7.68526258]
[1765563628284,7.57602099,132.0,131.96,7.68526258]
[1765563628487,8.3,131.99,131.97,0.68]
[1765563628785,8.3,131.99,131.97,8.36526258]
[1765563629108,88.0470912,132.04,131.98,7.68526258]
[1765563629304,88.0470912,132.04,131.98,0.68]
[1765563629305,8.3,132.03,131.98,0.68]
[1765563629511,17.82994492,132.03,131.98,8.36526258]
[1765563629714,8.3,132.03,132.01,7.68526258]
[1765563629895,7.57347517,132.04,132.01,7.68526258]
[1765563630082,15.8741372,132.03,131.99,0.68]
[1765563630281,7.57361332,132.04,132.01,7.68526258]
[1765563630481,75.0,132.06,132.03,7.68526258]
[1765563630684,75.0,132.1,132.05,7.68526258]
[1765563630908,13.28297628,132.09,132.06,7.68526258]
[1765563631078,8.3,132.09,132.06,7.68526258]
[1765563631281,13.28629383,132.09,132.06,7.68526258]
[1765563631481,20.85688963,132.09,132.0,0.14216157]
[1765563631707,4.98629383,132.08,132.04,7.68526258]
[1765563631908,4.98629383,132.08,132.05,7.68526258]
[1765563632291,12.55792943,132.08,132.03,8.25389067]
[1765563632489,12.55792943,132.08,132.05,7.68526258]
[1765563633913,12.55792943,132.08,131.91,0.99999999]
[1765563633914,8.80994492,132.04,131.91,0.99999999]
[1765563634116,13.28629383,132.03,131.99,7.68526258]
[1765563634287,4.98629383,132.02,131.97,0.68]
[1765563634614,4.98629383,132.03,131.97,0.68]
[1765563634792,8.3,132.02,131.99,7.67717201]
[1765563634998,8.3,132.01,131.99,7.67717201]
[1765563635309,4.98629383,132.03,131.99,8.35717201]
[1765563635310,8.3,132.0,131.99,8.35717201]
[1765563635504,8.3,132.0,131.99,0.68]
[1765563635706,7.57473315,132.02,131.99,0.68]
[1765563635891,8.3,132.01,131.99,8.35717201]
[1765563636094,7.57473315,132.02,131.99,8.35717201]
[1765563636309,5.01130262,132.01,131.99,8.35717201]
[1765563636688,8.3,132.0,131.99,0.68]
[1765563636890,5.01130262,132.01,131.99,0.68]
[1765563637088,8.3,132.0,131.99,0.68]
[1765563637386,13.31878863,132.0,131.99,0.68]
[1765563637595,8.3,132.0,131.99,0.68]
[1765563637816,13.31878863,132.0,131.99,0.68]
[1765563638209,13.31878863,132.0,131.97,7.67717201]
[1765563638406,5.01878863,131.99,131.97,0.68]
[1765563638718,8.3,132.0,131.98,0.68]
[1765563638894,5.0245134,131.99,131.98,0.68]
[1765563639517,5.0245134,131.99,131.95,7.57841649]
[1765563639808,5.0245134,131.98,131.96,7.57799583]
[1765563640006,13.3245134,131.97,131.96,8.25799583]
[1765563640597,5.0245134,131.97,131.93,0.68]
[1765563640808,13.3245134,131.96,131.93,0.68]
[1765563641014,5.0245134,131.95,131.93,0.68]
[1765563641218,5.03137381,131.94,131.9,0.68]
[1765563641399,8.3,131.93,131.9,7.67717201]
[1765563641604,8.3,131.93,131.91,0.68]
[1765563641793,8.3,131.93,131.91,8.35717201]
[1765563642198,8.3,131.93,131.92,0.68]
[1765563642417,13.33666916,131.93,131.92,8.35717201]
[1765563642625,13.33666916,131.93,131.92,0.68]
[1765563643117,8.3,131.93,131.92,0.68]
[1765563643320,41.67990797,131.97,131.92,8.26035172]
[1765563643321,6.24791326,131.97,131.92,8.26035172]
[1765563643624,13.33901876,131.96,131.92,8.26035172]
[1765563643830,5.03901876,131.95,131.92,0.68]
[1765563644010,5.03901876,131.94,131.92,0.68]
[1765563644208,8.3,131.93,131.92,0.68]
[1765563644404,13.34297132,131.93,131.9,0.68]
[1765563644603,5.04297132,131.92,131.91,0.68]
[1765563644920,8.3,131.93,131.92,7.58035172]
[1765563645123,8.3,131.93,131.92,8.26035172]
[1765563645502,8.3,131.93,131.92,15.93752373]
[1765563645922,7.57750233,131.97,131.92,8.26035172]
[1765563646110,13.34246755,131.96,131.92,8.26035172]
[1765563646309,5.04246755,131.95,131.93,0.68]
[1765563646626,8.3,131.96,131.93,0.68]
[1765563646812,5.04240812,131.95,131.93,0.68]
[1765563647149,13.34240812,131.94,131.93,0.68]
[1765563647304,13.34240812,131.94,131.9,8.26113397]
[1765563647505,5.04240812,131.93,131.9,8.26113397]
[1765563647807,5.04240812,131.92,131.91,0.68]
[1765563648004,8.3,131.94,131.91,8.35717201]
[1765563648406,13.82553964,131.97,131.92,8.35717201]
[1765563648598,13.35074508,131.96,131.92,8.35717201]
[1765563648794,5.05074508,131.95,131.93,0.68]
[1765563649022,5.05074508,131.95,131.91,7.67717201]
[1765563649023,5.05074508,131.94,131.9,7.58113397]
[1765563649224,13.35074508,131.93,131.9,7.58113397]
[1765563649527,8.39717201,131.95,131.89,8.2618574]
[1765563649528,13.35219965,131.92,131.89,8.2618574]
[1765563649826,13.35219965,131.92,131.9,8.35717201]
[1765563649827,8.3,131.92,131.9,8.35717201]
[1765563650201,8.3,131.92,131.91,0.7]
[1765563650524,8.3,131.92,131.9,0.7]
[1765563650525,13.35358234,131.92,131.9,0.7]
[1765563650706,8.3,131.92,131.89,15.25902941]
[1765563650908,8.3,131.92,131.9,8.37717201]
[1765563651125,7.57878436,131.95,131.9,8.37717201]
[1765563651326,13.35360137,131.94,131.91,0.7]
[1765563651625,8.3,131.93,131.9,7.58107296]
[1765563651827,5.05612265,131.92,131.89,0.7]
[1765563652131,5.05612265,131.91,131.87,8.28313946]
[1765563652332,13.35612265,131.9,131.87,8.28313946]
[1765563652517,8.3,131.9,131.87,8.28313946]
[1765563653021,5.05820081,131.89,131.87,8.28313946]
[1765563653209,8.3,131.9,131.87,8.28313946]
[1765563653407,5.05835356,131.89,131.88,0.7]
[1765563654026,5.05835356,131.89,131.87,7.58313946]
[1765563654209,8.3,131.9,131.87,8.28313946]
[1765563654410,5.05713902,131.89,131.87,8.28313946]
[1765563654621,15.88152909,131.9,131.87,0.7]
[1765563654834,5.05701744,131.89,131.87,0.7]
[1765563655034,8.3,131.9,131.87,15.9603929]
[1765563655223,8.3,131.9,131.87,8.28322089]
[1765563655427,5.05801828,131.91,131.89,7.67717201]
[1765563655736,8.3,131.9,131.88,0.7]
[1765563655938,8.3,131.89,131.88,0.7]
[1765563657210,8.3,131.89,131.88,8.28265089]
[1765563657633,8.3,131.89,131.85,0.7]
[1765563657816,5.7789532,131.88,131.82,7.67717201]
[1765563658015,5.0589532,131.87,131.82,7.67717201]
[1765563658216,6.96791326,131.88,131.82,8.37717201]
[1765563658217,5.0589532,131.86,131.82,8.37717201]
[1765563658420,109.21459147,131.89,131.84,7.67717201]
[1765563658421,8.3,131.85,131.84,7.67717201]
[1765563658934,8.3,131.85,131.84,0.7]
[1765563659236,8.3,131.85,131.84,8.28495145]
[1765563660222,8.3,131.85,131.81,0.7]
[1765563660416,8.3,131.85,131.82,15.26271816]
[1765563660617,7.58251053,131.89,131.84,15.26212346]
[1765563660822,13.35033941,131.88,131.84,15.26212346]
[1765563661139,8.3,131.88,131.84,8.28495145]
[1765563661442,8.3,131.88,131.85,8.37717201]
[1765563661644,8.3,131.88,131.84,8.28495145]
[1765563661815,0.72,131.87,131.83,7.58529163]
[1765563662142,8.30287791,131.88,131.84,7.58479156]
[1765563662443,8.3,131.87,131.84,7.58479156]
[1765563662626,5.04466487,131.87,131.84,7.58479156]
[1765563662813,13.34754278,131.88,131.84,8.28479156]
[1765563663011,8.3,131.87,131.84,8.28479156]
[1765563663222,8.30287791,131.88,131.84,8.28479156]
[1765563663441,13.34618993,131.88,131.84,8.28479156]
[1765563663640,8.3,131.87,131.84,8.28479156]
[1765563664038,0.72,131.88,131.84,8.28479156]
[1765563664221,8.3,131.86,131.84,8.28479156]
[1765563664421,8.3,131.85,131.84,8.28479156]
[1765563664646,8.30267296,131.88,131.84,8.28479156]
[1765563664944,8.30045922,131.92,131.86,7.67717201]
[1765563665143,8.30045922,131.92,131.85,0.7]
[1765563665144,9.02,131.91,131.85,8.37717201]
[1765563665647,9.02,131.91,131.86,0.7]
[1765563665832,8.3,131.9,131.86,0.7]
[1765563666143,8.3,131.89,131.87,7.5832259]
[1765563666517,0.72,131.93,131.88,7.67717201]
[1765563666730,8.3,131.92,131.89,7.67717201]
[1765563666923,8.3,131.92,131.89,0.7]
[1765563667244,9.02,131.91,131.86,8.28364951]
[1765563667948,7.67717201,131.89,131.8,8.3]
[1765563668248,8.3,131.88,131.84,8.37717201]
[1765563668420,8.3,131.88,131.77,8.4]
[1765563668621,0.72,131.9,131.85,7.67717201]
[1765563668822,13.33580687,131.9,131.84,7.67717201]
[1765563669053,21.01297888,131.9,131.84,0.7]
[1765563669229,21.73061011,131.89,131.84,0.7]
[1765563669417,16.69717201,131.89,131.84,0.7]
[1765563669624,0.72,131.88,131.84,0.7]
[1765563670053,7.5832259,131.87,131.84,0.7]
[1765563670224,8.3,131.86,131.83,7.58504257]
[1765563670533,8.3,131.86,131.84,0.7]
[1765563670735,8.3,131.86,131.84,8.28492123]
[1765563671233,8.3,131.86,131.84,0.7]
[1765563671753,8.3,131.86,131.84,8.28490595]
[1765563673846,8.3,131.87,131.85,8.39524865]
[1765563674022,0.72,131.91,131.85,8.39524865]
[1765563674221,0.72,131.91,131.86,0.7]
[1765563674426,15.99626668,131.91,131.84,34.94253324]
[1765563674638,15.99626668,131.91,131.85,0.7]
[1765563674837,8.3,131.9,131.85,0.7]
[1765563675044,15.99626668,131.91,131.85,0.7]
[1765563675253,0.72,131.9,131.84,15.2801546]
[1765563675453,0.72,131.9,131.85,0.7]
[1765563675630,8.3,131.89,131.85,0.7]
[1765563675955,8.3,131.89,131.83,20.08580327]
[1765563675956,28.38268301,131.89,131.83,20.08580327]
[1765563676153,12.50043201,131.84,131.79,0.7]
[1765563676325,8.3,131.83,131.79,0.7]
[1765563676528,9.02,131.83,131.79,0.7]
[1765563677750,7.58610226,131.82,131.79,0.7]
[1765563678056,7.58610226,131.82,131.77,0.1]
[1765563678057,39.77178992,131.82,131.77,0.1]
[1765563678245,0.66,131.81,131.77,0.77]
[1765563678431,8.3,131.8,131.77,19.74139002]
[1765563678625,7.58514806,131.84,131.79,20.08826113]
[1765563678825,8.3,131.83,131.79,20.08826113]
[1765563679032,8.3,131.84,131.81,12.50043201]
[1765563679246,8.3,131.84,131.82,12.50043201]
[1765563679441,6.24791326,131.9,131.83,12.50043201]
[1765563679640,8.3,131.89,131.86,12.50043201]
[1765563679851,8.3,131.89,131.86,20.08423301]
[1765563680158,8.2405748,131.92,131.87,0.67]
[1765563680361,5.04029127,131.92,131.88,12.50043201]
[1765563680532,7.57972299,131.94,131.88,12.50043201]
[1765563680533,8.3,131.91,131.88,12.50043201]
[1765563680731,8.3,131.91,131.87,13.16043201]
[1765563681148,8.3,131.91,131.86,26.5433035]
[1765563681456,8.3,131.91,131.87,13.16043201]
[1765563681663,13.34265742,131.91,131.87,0.66]
[1765563681864,8.3,131.91,131.87,20.08331715]
[1765563682180,8.3,131.91,131.88,0.66]
[1765563682347,13.34453239,131.91,131.88,0.66]
[1765563682550,20.92546665,131.91,131.88,0.66]
[1765563682757,15.88093426,131.91,131.88,0.66]
[1765563683071,15.88093426,131.91,131.86,7.58360418]
[1765563683368,15.88093426,131.91,131.81,38.93138612]
[1765563683369,12.50043201,131.87,131.81,8.24630858]
[1765563683571,13.34710731,131.86,131.81,8.24630858]
[1765563683752,13.34710731,131.86,131.8,7.5872521]
[1765563683753,7.58495145,131.84,131.8,7.5872521]
[1765563683960,8.3,131.83,131.78,13.16043201]
[1765563684146,8.3,131.83,131.78,8.24798049]
[1765563684345,25.84754023,131.83,131.78,0.66]
[1765563684539,96.85703612,131.86,131.79,0.66]
[1765563684540,7.58458235,131.85,131.79,0.66]
[1765563684760,13.34711164,131.84,131.8,7.58681793]
[1765563684947,8.3,131.83,131.79,0.66]
[1765563685254,8.3,131.83,131.81,12.50043201]
[1765563685569,8.3,131.83,131.79,7.58733672]
[1765563685570,5.04810595,131.82,131.79,7.58733672]
[1765563685747,8.3,131.83,131.79,7.58733672]
[1765563685942,5.04807421,131.82,131.79,7.58733672]
[1765563686241,16.60553831,131.83,131.79,7.58733672]
[1765563686441,5.04739088,131.82,131.79,8.24733672]
[1765563686741,8.3,131.83,131.8,13.16043201]
[1765563686942,13.88660132,131.87,131.81,12.50043201]
[1765563687143,13.35009507,131.86,131.81,13.16043201]
[1765563687461,5.05009507,131.85,131.81,12.50043201]
[1765563687770,5.05009507,131.85,131.79,26.84123266]
[1765563687771,5.05009507,131.84,131.79,39.71734153]
[1765563687971,13.35009507,131.83,131.79,39.71734153]
[1765563688176,8.3,131.83,131.82,12.50043201]
[1765563688350,13.35140347,131.83,131.82,0.66]
[1765563688550,8.3,131.83,131.82,0.66]
[1765563689257,13.3522784,131.83,131.8,0.66]
[1765563689486,5.0525203,131.82,131.8,0.66]
[1765563689657,8.3,131.83,131.8,0.66]
[1765563689857,8.3,131.83,131.78,20.89084682]
[1765563690071,5.05299087,131.82,131.79,8.24777636]
[1765563690274,5.05299087,131.81,131.79,8.24777636]
[1765563690457,15.88557331,131.83,131.79,8.24777636]
[1765563690654,5.05259586,131.82,131.8,7.58724494]
[1765563690970,0.72,131.82,131.77,0.1]
[1765563691274,5.0522833,131.81,131.77,8.34845971]
[1765563691451,0.72,131.82,131.77,20.84889172]
[1765563691655,5.05328129,131.81,131.79,7.5874687]
[1765563691871,7.58578534,131.83,131.79,7.5874687]
[1765563692168,8.32,131.81,131.79,8.2474687]
[1765563692674,8.32,131.82,131.8,13.16043201]
[1765563693486,8.32,131.82,131.8,0.66]
[1765563693652,8.32,131.82,131.8,8.24705868]
[1765563693851,8.32,131.82,131.78,18.9703128]
[1765563693852,8.32,131.82,131.78,13.16043201]
[1765563694150,8.32,131.82,131.77,0.1]
[1765563694151,6.30332299,131.8,131.77,0.1]
[1765563694372,12.50043201,131.78,131.77,0.1]
[1765563694571,23.85906807,131.78,131.77,0.1]
[1765563694756,24.57906807,131.78,131.77,0.1]
[1765563694960,5.77531307,131.78,131.77,0.1]
[1765563695163,5.05531307,131.78,131.77,0.1]
[1765563695362,5.05531307,131.78,131.77,0.76]
[1765563695659,5.05620845,131.8,131.77,13.26043201]
[1765563695864,6.30332299,131.83,131.78,12.50043201]
[1765563696087,5.05686919,131.82,131.8,12.50043201]
[1765563696375,7.58440769,131.85,131.8,12.50043201]
[1765563696546,7.58440769,131.85,131.77,26.94575592]
[1765563696547,5.06074012,131.84,131.83,13.0470912]
[1765563696752,5.06381547,131.85,131.82,12.50043201]
[1765563696960,8.30285341,131.88,131.82,13.16043201]
[1765563697160,5.06378365,131.87,131.82,13.16043201]
[1765563697369,5.06378365,131.86,131.82,13.16043201]
[1765563697560,8.30285341,131.88,131.82,0.66]
[1765563697760,5.06348045,131.87,131.83,7.58552681]
[1765563697979,5.06348045,131.87,131.8,13.33141434]
[1765563697980,5.06348045,131.86,131.8,13.33141434]
[1765563698174,5.06348045,131.85,131.8,8.3]
[1765563698354,5.06348045,131.84,131.81,7.58632054]
[1765563698673,0.72,131.86,131.82,7.58607018]
[1765563698879,5.06208412,131.85,131.82,7.58607018]
[1765563699071,5.06208412,131.85,131.81,0.66]
[1765563699072,5.06208412,131.84,131.81,7.58645575]
[1765563699265,0.72,131.85,131.81,7.58645575]
[1765563699459,5.06218493,131.84,131.8,7.58709016]
[1765563699772,5.06181289,131.83,131.81,8.3]
[1765563699969,5.06196755,131.83,131.81,8.3]
[1765563700358,20.08587634,131.84,131.81,8.3]
[1765563700561,5.06229468,131.83,131.81,8.3]
[1765563700877,20.80587634,131.84,131.81,8.3]
[1765563701080,5.06212378,131.83,131.81,8.3]
[1765563701283,20.80587634,131.84,131.81,8.3]
[1765563701465,5.06299903,131.83,131.81,8.3]
[1765563701788,8.30589537,131.83,131.81,8.3]
[1765563702279,5.78345828,131.82,131.77,0.1]
[1765563702577,5.78345828,131.81,131.77,0.1]
[1765563702758,5.06345828,131.8,131.77,0.1]
[1765563702955,0.72,131.81,131.77,0.1]
[1765563703167,5.06781844,131.8,131.77,7.68890871]
[1765563703364,0.72,131.81,131.77,7.68890871]
[1765563703576,5.06679886,131.8,131.77,7.68890871]
[1765563703781,14.62332299,131.84,131.79,7.58782912]
[1765563703956,5.06736354,131.83,131.79,7.58782912]
[1765563704157,5.06736782,131.82,131.79,7.58782912]
[1765563704565,5.06736782,131.82,131.77,12.60043201]
[1765563704566,5.06736782,131.81,131.77,7.68842517]
[1765563704770,5.06736782,131.81,131.77,0.76]
[1765563704969,5.06736782,131.81,131.78,0.66]
[1765563705368,5.06736782,131.81,131.78,8.248356]
[1765563705690,5.06736782,131.83,131.78,20.74878801]
[1765563705986,5.06736782,131.82,131.79,8.3]
[1765563706178,8.30563962,131.83,131.79,8.3]
[1765563706375,5.06361031,131.82,131.79,8.96]
[1765563706680,5.06201647,131.83,131.79,8.96]
[1765563706886,5.06201647,131.82,131.79,8.96]
[1765563707066,5.06201647,131.82,131.79,8.3]
[1765563707579,132.07163884,131.85,131.79,8.3]
[1765563707580,105.02,131.85,131.79,8.3]
[1765563707769,5.06330167,131.84,131.81,7.58667779]
[1765563707973,104.3,131.85,131.81,7.58667779]
[1765563708162,6.33420978,131.88,131.82,21.46043201]
[1765563708362,5.06414771,131.87,131.82,21.46043201]
[1765563708597,38.51019806,131.89,131.83,0.66]
[1765563708598,5.06512437,131.86,131.83,0.66]
[1765563708776,5.06530604,131.87,131.83,13.16043201]
[1765563708968,13.22043201,131.89,131.83,13.16043201]
[1765563709168,13.22043201,131.89,131.84,13.16043201]
[1765563709169,5.06500303,131.88,131.84,13.16043201]
[1765563709397,5.06500303,131.87,131.85,8.3]
[1765563709577,5.06500303,131.88,131.85,8.3]
[1765563709775,5.06500303,131.87,131.85,8.3]
[1765563709965,5.06500303,131.88,131.85,15.88436325]
[1765563710161,5.06500303,131.87,131.85,15.88436325]
[1765563710367,5.06589467,131.88,131.85,15.88436325]
[1765563710589,5.06618734,131.87,131.82,0.7]
[1765563710784,5.06618734,131.86,131.84,8.3]
[1765563711086,5.06618734,131.87,131.84,8.3]